bitfinex/quotes_BTCUSD_20250711
["timestamp","ask_amount","ask_price","bid_price","bid_amount"]
[1752198472377,0.25,115930.0,115920.0,0.48512987]
[1752198472728,0.25,115940.0,115930.0,0.0817]
[1752198472924,0.25,115940.0,115930.0,0.26873]
[1752198474317,0.25,115940.0,115930.0,0.26973]
[1752198474489,0.25,115940.0,115930.0,0.28594]
[1752198478584,0.25,115940.0,115930.0,0.37136993]
[1752198478734,0.38188,115950.0,115940.0,0.0822]
[1752198478932,0.38188,115950.0,115940.0,0.08727]
[1752198479411,0.25,115950.0,115940.0,0.08727]
[1752198479565,0.38184,115950.0,115940.0,0.08727]
[1752198479774,0.13184,115950.0,115940.0,0.08727]
[1752198480374,0.13384,115950.0,115940.0,0.08727]
[1752198483048,0.19384,115950.0,115940.0,0.08727]
[1752198483718,0.44384,115950.0,115940.0,0.08727]
[1752198484333,0.7115164,115950.0,115940.0,0.08727]
[1752198485163,0.44384,115950.0,115940.0,0.08727]
[1752198486947,0.44384,115950.0,115940.0,0.08727]
[1752198487398,0.312,115950.0,115940.0,0.08727]
[1752198489827,0.31208006,115950.0,115940.0,0.08727]
[1752198492289,0.25208006,115950.0,115940.0,0.08727]
[1752198495672,0.25208006,115950.0,115940.0,0.4039464]
[1752198495905,0.00208006,115950.0,115940.0,0.4039464]
[1752198496106,0.00208006,115950.0,115940.0,0.48937633]
[1752198496482,0.00108006,115950.0,115940.0,0.22169993]
[1752198496690,8.006e-05,115950.0,115940.0,0.22169993]
[1752198496855,8.006e-05,115950.0,115940.0,0.22269993]
[1752198497877,8.006e-05,115950.0,115940.0,0.49037633]
[1752198498493,8.006e-05,115950.0,115940.0,0.56719407]
[1752198500567,8.006e-05,115950.0,115940.0,0.29951767]
[1752198500784,8.006e-05,115950.0,115940.0,0.56719407]
[1752198502759,8.006e-05,115950.0,115940.0,0.49037633]
[1752198502954,0.25,115960.0,115950.0,2.61649494]
[1752198503154,0.25,115960.0,115950.0,2.82752745]
[1752198503369,0.25,115960.0,115950.0,2.75358494]
[1752198503595,0.25,115960.0,115950.0,2.83050745]
[1752198504204,0.251,115960.0,115950.0,2.83050745]
[1752198504770,0.251,115960.0,115950.0,2.75358494]
[1752198504900,0.251,115960.0,115950.0,2.62158494]
[1752198505108,0.252,115960.0,115950.0,2.75350494]
[1752198506073,0.251,115960.0,115950.0,2.75350494]
[1752198506231,0.251,115960.0,115950.0,2.75450494]
[1752198507283,0.251,115960.0,115950.0,2.62258494]
[1752198507488,0.251,115960.0,115950.0,2.75446494]
[1752198508345,0.25,115960.0,115950.0,2.75446494]
[1752198509784,0.25,115960.0,115950.0,2.83138745]
[1752198510353,0.25,115960.0,115950.0,3.14806385]
[1752198510554,0.25,115960.0,115950.0,3.50117018]
[1752198510758,0.25,115980.0,115970.0,0.0662]
[1752198510918,0.25,115980.0,115970.0,0.21593]
[1752198511119,0.25,115980.0,115970.0,0.21891]
[1752198511535,0.25,115980.0,115970.0,0.26791]
[1752198511739,0.25,115980.0,115970.0,0.5355864]
[1752198511978,0.25414911,115980.0,115970.0,0.55236842]
[1752198512184,0.25414911,115980.0,115970.0,0.28469202]
[1752198512794,0.25414911,115980.0,115970.0,0.63779835]
[1752198512795,0.25214911,115980.0,115970.0,0.63779835]
[1752198513209,0.25014911,115980.0,115970.0,0.63779835]
[1752198513639,0.25014911,115980.0,115970.0,0.63879835]
[1752198513850,0.00014911,115980.0,115970.0,0.63879835]
[1752198514267,0.00014911,115980.0,115970.0,0.71572086]
[1752198514491,0.00014911,115980.0,115970.0,0.44804446]
[1752198514715,0.00014911,115980.0,115970.0,0.71568086]
[1752198515354,0.00014911,115980.0,115970.0,0.63875835]
[1752198515812,0.00014911,115980.0,115970.0,0.23920195]
[1752198516025,0.00014911,115980.0,115970.0,0.37108195]
[1752198516480,0.00014911,115980.0,115970.0,0.63875835]
[1752198517313,0.00014911,115980.0,115970.0,0.71568086]
[1752198517518,0.00014911,115980.0,115970.0,0.44800446]
[1752198517723,0.00014911,115980.0,115970.0,0.63875835]
[1752198518779,0.00014911,115980.0,115970.0,0.71568086]
[1752198519191,0.25,116000.0,115970.0,1.31732511]
[1752198519384,0.25,116000.0,115990.0,0.82440633]
[1752198519385,0.25049693,116000.0,115990.0,0.82440633]
[1752198519585,0.25049693,116000.0,115990.0,0.96217633]
[1752198519586,0.24187862,116000.0,115990.0,0.96217633]
[1752198519870,0.00049693,116000.0,115990.0,0.96217633]
[1752198520080,0.25,116030.0,116020.0,0.05]
[1752198520289,0.25014902,116030.0,116020.0,0.21713]
[1752198520416,0.25014902,116030.0,116020.0,0.26911]
[1752198521421,0.25014902,116030.0,116020.0,0.35453993]
[1752198521625,0.00014902,116030.0,116020.0,0.35453993]
[1752198522230,0.00114902,116030.0,116020.0,0.35453993]
[1752198522947,0.00314902,116030.0,116020.0,0.35453993]
[1752198523889,0.01176681,116030.0,116020.0,0.35449993]
[1752198524286,0.30529791,116030.0,116020.0,0.099]
[1752198524495,0.29667945,116030.0,116020.0,0.23168]
[1752198524695,0.52944321,116030.0,116020.0,0.23168]
[1752198524903,0.55529769,116030.0,116020.0,0.23466]
[1752198525680,0.55529769,116030.0,116020.0,0.2347]
[1752198525813,0.71043117,116030.0,116020.0,0.099]
[1752198526021,0.70181301,116030.0,116020.0,0.23168]
[1752198526284,0.74865386,116030.0,116020.0,0.18168]
[1752198526734,0.74865386,116030.0,116020.0,0.099]
[1752198527164,0.74865386,116030.0,116020.0,0.049]
[1752198527372,0.74865386,116030.0,116020.0,0.099]
[1752198527778,0.74865386,116030.0,116020.0,0.049]
[1752198528009,0.74865386,116030.0,116020.0,0.099]
[1752198528559,0.74865386,116030.0,116020.0,0.049]
[1752198528760,0.74865386,116030.0,116020.0,0.099]
[1752198529183,0.73305386,116030.0,116020.0,0.099]
[1752198529591,0.73305386,116030.0,116020.0,0.049]
[1752198529742,0.18100312,116020.0,116010.0,0.099]
[1752198529953,0.18101872,116010.0,116000.0,0.18172]
[1752198530159,0.29353585,116010.0,116000.0,0.23172]
[1752198530410,0.29353585,116010.0,116000.0,0.18172]
[1752198530612,0.29353585,116010.0,116000.0,0.23172]
[1752198530969,0.46593478,116010.0,116000.0,0.23172]
[1752198531169,0.46593478,116010.0,116000.0,0.18172]
[1752198531703,0.45731506,116010.0,116000.0,0.18472]
[1752198532083,0.44869527,116010.0,116000.0,0.18372]
[1752198532280,0.44869527,116010.0,116000.0,0.2338]
[1752198532502,0.73257167,116010.0,116000.0,0.2338]
[1752198532709,1.01251252,116010.0,116000.0,0.002]
[1752198532949,1.01251252,116010.0,116000.0,0.101]
[1752198534260,0.74483612,116010.0,116000.0,0.101]
[1752198535000,0.72943612,116010.0,116000.0,0.051]
[1752198535262,0.72943612,116010.0,116000.0,0.101]
[1752198535836,0.46175972,116010.0,116000.0,0.101]
[1752198536062,0.72943612,116010.0,116000.0,0.101]
[1752198537973,1.09824245,116010.0,116000.0,0.101]
[1752198538779,0.83056605,116010.0,116000.0,0.101]
[1752198539366,0.74513612,116010.0,116000.0,0.101]
[1752198539716,0.72943612,116010.0,116000.0,0.101]
[1752198540723,0.73556605,116010.0,116000.0,0.101]
[1752198541023,1.00324245,116010.0,116000.0,0.101]
[1752198541274,0.73556605,116010.0,116000.0,0.101]
[1752198543276,0.73556605,116010.0,116000.0,0.099]
[1752198543664,0.73656605,116010.0,116000.0,0.099]
[1752198544086,0.73756605,116010.0,116000.0,0.049]
[1752198544238,0.73756605,116010.0,116000.0,0.099]
[1752198544438,0.73756605,116010.0,116000.0,0.049]
[1752198544640,0.73756605,116010.0,116000.0,0.099]
[1752198545122,1.00524245,116010.0,116000.0,0.099]
[1752198545332,1.06571237,116010.0,116000.0,0.099]
[1752198545551,0.18965479,116000.0,115990.0,0.18164]
[1752198545706,0.45733119,116000.0,115990.0,0.18164]
[1752198546082,0.45733119,116000.0,115990.0,0.23164]
[1752198546848,0.70733119,116000.0,115990.0,0.23487]
[1752198547213,0.5176764,116000.0,115990.0,0.26657]
[1752198547571,0.54353682,116000.0,115990.0,0.2687]
[1752198547779,0.55215728,116000.0,115990.0,0.2687]
[1752198548003,0.56077789,116000.0,115990.0,0.2687]
[1752198548215,0.55215728,116000.0,115990.0,0.2687]
[1752198548421,0.56077796,116000.0,115990.0,0.2687]
[1752198548627,0.56077796,116000.0,115990.0,0.2677]
[1752198548628,0.55215794,116000.0,115990.0,0.2677]
[1752198550917,0.81727794,116000.0,115990.0,0.2677]
[1752198552083,0.81727787,116000.0,115990.0,0.2677]
[1752198553013,0.80865771,116000.0,115990.0,0.2677]
[1752198553366,0.54098131,116000.0,115990.0,0.2677]
[1752198553578,0.80865771,116000.0,115990.0,0.2677]
[1752198553782,0.81727839,116000.0,115990.0,0.2677]
[1752198555056,0.55215839,116000.0,115990.0,0.2677]
[1752198555253,0.54353771,116000.0,115990.0,0.2677]
[1752198556138,0.25,116000.0,115990.0,0.2677]
[1752198556571,0.25,116000.0,115990.0,0.5353764]
[1752198556770,0.25,116010.0,116000.0,0.1304]
[1752198556920,0.25,116010.0,116000.0,0.13576]
[1752198557343,0.25,116010.0,116000.0,0.48886633]
[1752198557749,0.25014902,116030.0,116020.0,0.1304]
[1752198557952,0.25014902,116030.0,116020.0,0.6685964]
[1752198558152,0.25014902,116030.0,116020.0,0.40092]
[1752198558723,0.00014902,116030.0,116020.0,0.40092]
[1752198558928,0.00214902,116030.0,116020.0,0.40092]
[1752198559929,0.00214902,116030.0,116020.0,0.41606657]
[1752198562532,0.00214902,116030.0,116020.0,0.15090657]
[1752198562906,0.00214902,116030.0,116020.0,0.28342657]
[1752198565394,0.00214902,116030.0,116020.0,0.3688565]
[1752198567763,0.00214902,116030.0,116020.0,0.2363365]
[1752198567968,0.00214902,116030.0,116020.0,0.3687765]
[1752198570676,0.00214902,116030.0,116020.0,0.2363365]
[1752198570877,0.00214902,116030.0,116020.0,0.3687365]
[1752198571002,0.00214902,116030.0,116020.0,0.3686965]
[1752198572132,0.00214902,116030.0,116020.0,0.3686565]
[1752198572360,0.00214902,116030.0,116020.0,0.6363329]
[1752198573521,0.00214902,116030.0,116020.0,0.3686565]
[1752198573720,0.00214902,116030.0,116020.0,0.6363329]
[1752198574378,0.00214902,116030.0,116020.0,0.3686165]
[1752198574722,0.00214902,116030.0,116020.0,0.2363365]
[1752198574946,0.00214902,116030.0,116020.0,0.3686165]
[1752198575168,0.00214902,116030.0,116020.0,0.2363365]
[1752198575363,0.00214902,116030.0,116020.0,0.3686165]
[1752198576743,0.00214902,116030.0,116020.0,0.2363365]
[1752198576999,0.00214902,116030.0,116020.0,0.3686165]
[1752198578711,0.00214902,116030.0,116020.0,0.6362929]
[1752198585255,0.00214902,116030.0,116020.0,0.71321541]
[1752198586454,0.00214902,116030.0,116020.0,1.05321541]
[1752198590393,0.00214902,116030.0,116020.0,0.78553901]
[1752198590635,0.00214902,116030.0,116020.0,1.05321541]
[1752198592166,0.00214902,116030.0,116020.0,0.71321541]
[1752198592369,0.00214902,116030.0,116020.0,1.05321541]
[1752198592786,0.00214902,116030.0,116020.0,0.78553901]
[1752198593559,0.00214902,116030.0,116020.0,1.05321541]
[1752198594300,0.00214902,116030.0,116020.0,0.78553901]
[1752198594724,0.00214902,116030.0,116020.0,0.31325901]
[1752198594952,0.00214902,116030.0,116020.0,0.65201901]
[1752198595159,0.26982542,116030.0,116020.0,0.22782908]
[1752198595367,0.26982542,116030.0,116020.0,0.11314657]
[1752198595576,0.28522542,116030.0,116020.0,0.11314657]
[1752198595776,0.25214902,116030.0,116020.0,0.24820657]
[1752198596161,0.25214902,116030.0,116020.0,0.32512908]
[1752198596683,0.25214902,116030.0,116020.0,0.24820657]
[1752198597706,0.51982542,116030.0,116020.0,0.24820657]
[1752198598270,0.54384336,116030.0,116020.0,0.11616657]
[1752198598472,0.54384328,116030.0,116020.0,0.24518657]
[1752198598672,0.53522542,116030.0,116020.0,0.24518657]
[1752198599053,0.51982542,116030.0,116020.0,0.24518657]
[1752198600169,0.51982542,116030.0,116020.0,0.24820657]
[1752198602071,0.55246122,116030.0,116020.0,0.098]
[1752198602272,0.55246115,116030.0,116020.0,0.23]
[1752198603020,0.56107923,116030.0,116020.0,0.22996]
[1752198603224,0.55246115,116030.0,116020.0,0.22996]
[1752198603426,0.53706115,116030.0,116020.0,0.22996]
[1752198603579,0.51982542,116030.0,116020.0,0.098]
[1752198603935,0.53706122,116030.0,116020.0,0.22992]
[1752198604339,0.52844321,116030.0,116020.0,0.22992]
[1752198604545,0.25214902,116030.0,116020.0,0.23294]
[1752198604915,0.25214902,116030.0,116020.0,0.2671]
[1752198606294,0.25214902,116030.0,116020.0,0.13518]
[1752198606497,0.25214902,116030.0,116020.0,0.26714]
[1752198606690,0.00214902,116030.0,116020.0,0.26714]
[1752198607328,0.00214902,116030.0,116020.0,0.35256993]
[1752198608623,0.25214902,116030.0,116020.0,0.35256993]
[1752198609684,0.25214902,116030.0,116020.0,0.21854993]
[1752198609897,0.25214902,116030.0,116020.0,0.35260993]
[1752198610353,0.51982542,116030.0,116020.0,0.35260993]
[1752198610761,0.25214902,116030.0,116020.0,0.35260993]
[1752198613047,0.59076741,116030.0,116020.0,0.2671]
[1752198613168,0.52844328,116030.0,116020.0,0.23294]
[1752198613368,0.25214902,116030.0,116020.0,0.23294]
[1752198613615,0.52844328,116030.0,116020.0,0.235]
[1752198613819,0.52844328,116030.0,116020.0,0.2006]
[1752198614018,0.26076688,116030.0,116020.0,0.2506]
[1752198614171,0.52844328,116030.0,116020.0,0.2506]
[1752198615000,0.52844328,116030.0,116020.0,0.2006]
[1752198615200,0.53706136,116030.0,116020.0,0.23068]
[1752198615606,0.26938489,116030.0,116020.0,0.2337]
[1752198615811,0.26076681,116030.0,116020.0,0.2337]
[1752198616009,0.52844321,116030.0,116020.0,0.2337]
[1752198617052,0.52844321,116030.0,116020.0,0.25086]
[1752198617302,0.51982542,116030.0,116020.0,0.25086]
[1752198617496,0.52844321,116030.0,116020.0,0.25086]
[1752198617726,0.53706115,116030.0,116020.0,0.25086]
[1752198618350,0.54567923,116030.0,116020.0,0.2337]
[1752198618523,0.80724456,116030.0,116020.0,0.098]
[1752198618726,0.64349381,116030.0,116020.0,0.23068]
[1752198619104,0.74166786,116030.0,116020.0,0.098]
[1752198619310,0.22202225,116020.0,116010.0,0.048]
[1752198619533,0.48969865,116020.0,116010.0,0.18076]
[1752198619737,0.48969865,116020.0,116010.0,0.23076]
[1752198620727,0.73969865,116020.0,116010.0,0.23076]
[1752198621372,0.73969865,116020.0,116010.0,0.18076]
[1752198621594,0.73969865,116020.0,116010.0,0.23076]
[1752198621971,0.73969865,116020.0,116010.0,0.18076]
[1752198622233,0.73969865,116020.0,116010.0,0.23076]
[1752198622585,0.73969865,116020.0,116010.0,0.18068]
[1752198622763,0.73969865,116020.0,116010.0,0.23068]
[1752198622966,0.57593318,116020.0,116010.0,0.18068]
[1752198623169,0.57593318,116020.0,116010.0,0.23068]
[1752198623434,0.56835238,116020.0,116010.0,0.18068]
[1752198623741,0.56835238,116020.0,116010.0,0.23068]
[1752198623940,0.56835238,116020.0,116010.0,0.18068]
[1752198624237,0.56835238,116020.0,116010.0,0.23068]
[1752198626563,0.7321177,116020.0,116010.0,0.23068]
[1752198626809,0.81754763,116020.0,116010.0,0.23068]
[1752198627352,0.7321177,116020.0,116010.0,0.23068]
[1752198627967,0.7159177,116020.0,116010.0,0.23068]
[1752198628419,0.7159177,116020.0,116010.0,0.18068]
[1752198628626,0.7159177,116020.0,116010.0,0.23068]
[1752198629010,0.26723721,116020.0,116010.0,0.23369]
[1752198629214,0.26723721,116020.0,116010.0,0.24999]
[1752198629418,0.53491361,116020.0,116010.0,0.24999]
[1752198629616,0.54353244,116020.0,116010.0,0.23369]
[1752198629828,0.55215142,116020.0,116010.0,0.23369]
[1752198630066,0.53491361,116020.0,116010.0,0.23369]
[1752198630409,0.54353244,116020.0,116010.0,0.25009]
[1752198631229,0.54353236,116020.0,116010.0,0.25009]
[1752198631649,0.54353236,116020.0,116010.0,0.26669]
[1752198631650,0.53491361,116020.0,116010.0,0.26669]
[1752198631935,0.54353244,116020.0,116010.0,0.26669]
[1752198632076,0.55215142,116020.0,116010.0,0.26669]
[1752198632281,0.54353244,116020.0,116010.0,0.26669]
[1752198632685,0.55215134,116020.0,116010.0,0.26669]
[1752198632906,0.53491361,116020.0,116010.0,0.26885]
[1752198633107,0.27585604,116020.0,116010.0,0.26885]
[1752198633326,0.54353251,116020.0,116010.0,0.26885]
[1752198633936,0.54353244,116020.0,116010.0,0.26885]
[1752198634337,0.53491361,116020.0,116010.0,0.26885]
[1752198634557,0.54353236,116020.0,116010.0,0.26885]
[1752198634762,0.53491361,116020.0,116010.0,0.26885]
[1752198635629,0.54353236,116020.0,116010.0,0.26885]
[1752198635834,0.55215126,116020.0,116010.0,0.26885]
[1752198636248,0.55215126,116020.0,116010.0,0.25009]
[1752198636661,0.56077024,116020.0,116010.0,0.25009]
[1752198637074,0.56077024,116020.0,116010.0,0.18369]
[1752198637246,0.54353236,116020.0,116010.0,0.18369]
[1752198637482,0.55215126,116020.0,116010.0,0.23369]
[1752198638502,0.55215126,116020.0,116010.0,0.18369]
[1752198638731,0.55215126,116020.0,116010.0,0.23369]
[1752198639094,0.55215119,116020.0,116010.0,0.23369]
[1752198639301,0.25,116020.0,116010.0,0.26705]
[1752198639559,0.25861853,116020.0,116010.0,0.26705]
[1752198639758,0.25,116020.0,116010.0,0.26705]
[1752198640203,0.25861853,116020.0,116010.0,0.26705]
[1752198641395,0.25,116020.0,116010.0,0.26705]
[1752198641801,0.2586186,116020.0,116010.0,0.26705]
[1752198642347,0.5176764,116020.0,116010.0,0.26705]
[1752198642471,0.52629493,116020.0,116010.0,0.26705]
[1752198643749,0.25,116020.0,116010.0,0.26705]
[1752198643929,0.26723713,116020.0,116010.0,0.26705]
[1752198645259,0.53491353,116020.0,116010.0,0.26705]
[1752198645603,0.52629493,116020.0,116010.0,0.26705]
[1752198646031,0.53491361,116020.0,116010.0,0.26705]
[1752198646233,0.52629493,116020.0,116010.0,0.26705]
[1752198648007,0.53491361,116020.0,116010.0,0.26705]
[1752198648214,0.54353236,116020.0,116010.0,0.26705]
[1752198648933,0.54353236,116020.0,116010.0,0.13437]
[1752198649136,0.55215126,116020.0,116010.0,0.26721]
[1752198649498,0.55215119,116020.0,116010.0,0.26721]
[1752198650546,0.53491368,116020.0,116010.0,0.26721]
[1752198650966,0.53491361,116020.0,116010.0,0.26721]
[1752198651495,0.26723721,116020.0,116010.0,0.26721]
[1752198651699,0.53491361,116020.0,116010.0,0.26721]
[1752198653258,0.26723721,116020.0,116010.0,0.26721]
[1752198653468,0.53491361,116020.0,116010.0,0.26721]
[1752198653792,0.52629493,116020.0,116010.0,0.26721]
[1752198653958,0.53491353,116020.0,116010.0,0.26721]
[1752198654574,0.54353221,116020.0,116010.0,0.26721]
[1752198657329,0.53491353,116020.0,116010.0,0.26721]
[1752198657928,0.53491353,116020.0,116010.0,0.13437]
[1752198658963,0.52629493,116020.0,116010.0,0.13437]
[1752198659166,0.26723721,116020.0,116010.0,0.26693]
[1752198659710,0.26723728,116020.0,116010.0,0.26693]
[1752198660022,0.26723721,116020.0,116010.0,0.26693]
[1752198660579,0.53491361,116020.0,116010.0,0.26693]
[1752198660987,0.52600302,116020.0,116010.0,0.26693]
[1752198661162,0.51738449,116020.0,116010.0,0.26693]
[1752198661366,0.25,116020.0,116010.0,0.26693]
[1752198661594,0.51738449,116020.0,116010.0,0.26693]
[1752198663629,0.51738449,116020.0,116010.0,0.13437]
[1752198663829,0.5346217,116020.0,116010.0,0.26693]
[1752198664035,0.80200619,116020.0,116010.0,0.23052]
[1752198664243,0.79338751,116020.0,116010.0,0.23052]
[1752198664677,0.80200619,116020.0,116010.0,0.2336]
[1752198664881,0.5346217,116020.0,116010.0,0.2501]
[1752198665181,0.80200619,116020.0,116010.0,0.2501]
[1752198665591,0.79338751,116020.0,116010.0,0.2501]
[1752198666451,0.80200619,116020.0,116010.0,0.2501]
[1752198666834,0.79338751,116020.0,116010.0,0.2501]
[1752198667004,0.52601437,116020.0,116010.0,0.2501]
[1752198667204,0.53463305,116020.0,116010.0,0.266]
[1752198667408,0.52601437,116020.0,116010.0,0.266]
[1752198667848,0.53463312,116020.0,116010.0,0.266]
[1752198668265,0.56617388,116020.0,116010.0,0.2501]
[1752198668670,0.52601437,116020.0,116010.0,0.2501]
[1752198669401,0.52601437,116020.0,116010.0,0.23352]
[1752198670339,0.52601437,116020.0,116010.0,0.24882]
[1752198670539,0.51739584,116020.0,116010.0,0.24882]
[1752198671628,0.51739584,116020.0,116010.0,0.26402]
[1752198672048,0.52601444,116020.0,116010.0,0.26402]
[1752198672396,0.51739584,116020.0,116010.0,0.26402]
[1752198672927,0.52601437,116020.0,116010.0,0.26402]
[1752198674490,0.51739584,116020.0,116010.0,0.26402]
[1752198674709,0.51739584,116020.0,116010.0,0.24882]
[1752198675485,0.51739584,116020.0,116010.0,0.26402]
[1752198678497,0.52601437,116020.0,116010.0,0.26402]
[1752198678747,0.51739584,116020.0,116010.0,0.195018]
[1752198679544,0.52601437,116020.0,116010.0,0.195018]
[1752198679998,0.53463305,116020.0,116010.0,0.195018]
[1752198680219,0.52601437,116020.0,116010.0,0.195018]
[1752198680438,0.54325195,116020.0,116010.0,0.195018]
[1752198680658,0.54325188,116020.0,116010.0,0.195018]
[1752198681151,0.53463305,116020.0,116010.0,0.195018]
[1752198681398,0.54325188,116020.0,116010.0,0.195018]
[1752198681603,0.53463305,116020.0,116010.0,0.195018]
[1752198682493,0.54325188,116020.0,116010.0,0.195018]
[1752198682974,0.53463305,116020.0,116010.0,0.195018]
[1752198683181,0.52601437,116020.0,116010.0,0.195018]
[1752198683392,0.53463305,116020.0,116010.0,0.195018]
[1752198683597,0.52601437,116020.0,116010.0,0.195018]
[1752198683834,0.53463297,116020.0,116010.0,0.195018]
[1752198684276,0.52601437,116020.0,116010.0,0.195018]
[1752198685207,0.25861853,116020.0,116010.0,0.196988]
[1752198685420,0.52601437,116020.0,116010.0,0.196988]
[1752198685931,0.53463305,116020.0,116010.0,0.196988]
[1752198686161,0.52601437,116020.0,116010.0,0.196988]
[1752198686645,0.51739584,116020.0,116010.0,0.196988]
[1752198687544,0.51739584,116020.0,116010.0,0.196668]
[1752198687921,0.25,116020.0,116010.0,0.196668]
[1752198688134,0.51739584,116020.0,116010.0,0.196668]
[1752198688540,0.52601444,116020.0,116010.0,0.196668]
[1752198688810,0.52601437,116020.0,116010.0,0.196668]
[1752198689028,0.79342747,116020.0,116010.0,0.196668]
[1752198690667,0.80204615,116020.0,116010.0,0.196668]
[1752198690880,0.88747608,116020.0,116010.0,0.196668]
[1752198691087,0.88747608,116020.0,116010.0,0.064548]
[1752198691333,0.88747608,116020.0,116010.0,0.196628]
[1752198691754,0.89609491,116020.0,116010.0,0.196628]
[1752198691927,0.90471396,116020.0,116010.0,0.062578]
[1752198692134,0.90471396,116020.0,116010.0,0.161078]
[1752198693227,0.90471396,116020.0,116010.0,0.179288]
[1752198693779,0.90471389,116020.0,116010.0,0.179288]
[1752198693990,0.90471389,116020.0,116010.0,0.15029]
[1752198694187,0.90471389,116020.0,116010.0,0.179288]
[1752198694336,0.81928396,116020.0,116010.0,0.195488]
[1752198695170,0.98305002,116020.0,116010.0,0.028998]
[1752198695342,1.28319204,116020.0,116010.0,0.028998]
[1752198695675,0.18963829,116010.0,116000.0,0.07692251]
[1752198695879,0.81338647,116010.0,116000.0,0.13208]
[1752198696286,0.19827451,116000.0,115990.0,2.75595394]
[1752198696497,0.5434294,116000.0,115990.0,2.80810143]
[1752198696698,0.82483032,116000.0,115990.0,2.80810143]
[1752198697038,0.833451,116000.0,115990.0,2.80810143]
[1752198697543,1.08267441,116000.0,115990.0,2.80810143]
[1752198697777,1.36507441,116000.0,115990.0,2.67602143]
[1752198697984,1.3709948,116000.0,115990.0,2.662548]
[1752198698204,1.7238292,116000.0,115990.0,2.662548]
[1752198698386,1.45642473,116000.0,115990.0,2.662548]
[1752198698623,1.43992473,116000.0,115990.0,2.691546]
[1752198698806,1.43130412,116000.0,115990.0,2.662548]
[1752198699375,1.44690412,116000.0,115990.0,2.662548]
[1752198699571,1.45968357,116000.0,115990.0,2.662548]
[1752198699792,1.78690412,116000.0,115990.0,2.662548]
[1752198700049,1.78790412,116000.0,115990.0,2.691546]
[1752198701026,1.78890412,116000.0,115990.0,2.662548]
[1752198701303,2.05630859,116000.0,115990.0,2.65393192]
[1752198701520,2.05630859,116000.0,115990.0,2.64531584]
[1752198701938,2.05630859,116000.0,115990.0,2.63669588]
[1752198702072,2.06871466,116000.0,115990.0,2.63669588]
[1752198702278,2.09500122,116000.0,115990.0,2.59790606]
[1752198702690,2.48259515,116000.0,115990.0,2.5892861]
[1752198703165,2.48259515,116000.0,115990.0,2.58066614]
[1752198703640,2.48259515,116000.0,115990.0,2.54187632]
[1752198704055,2.08259515,116000.0,115990.0,2.53325636]
[1752198704517,2.08259515,116000.0,115990.0,2.5246364]
[1752198704640,2.08259515,116000.0,115990.0,2.51601644]
[1752198704838,1.81568604,116000.0,115990.0,2.51601644]
[1752198705054,1.81568604,116000.0,115990.0,2.50739648]
[1752198705361,1.81568604,116000.0,115990.0,2.47722662]
[1752198705706,1.81568604,116000.0,115990.0,2.46860666]
[1752198705920,1.81568604,116000.0,115990.0,2.4599867]
[1752198706209,1.81568604,116000.0,115990.0,2.42981684]
[1752198706429,1.81468604,116000.0,115990.0,2.42119688]
[1752198706633,1.81668604,116000.0,115990.0,2.42119688]
[1752198706816,1.81668604,116000.0,115990.0,2.41257692]
[1752198707018,1.82949406,116000.0,115990.0,2.41257692]
[1752198707196,1.82849406,116000.0,115990.0,2.40395696]
[1752198707545,1.85636806,116000.0,115990.0,2.395337]
[1752198707906,1.85636806,116000.0,115990.0,2.38671704]
[1752198708307,1.85636806,116000.0,115990.0,2.37809614]
[1752198708732,1.85636806,116000.0,115990.0,2.33930208]
[1752198708972,1.87737006,116000.0,115990.0,2.33930208]
[1752198709152,1.87737006,116000.0,115990.0,2.33068118]
[1752198709357,1.87537006,116000.0,115990.0,2.30050802]
[1752198709710,1.87537006,116000.0,115990.0,2.29188712]
[1752198709911,1.87937006,116000.0,115990.0,2.28326622]
[1752198710113,1.87937006,116000.0,115990.0,2.25309306]
[1752198710396,1.87937006,116000.0,115990.0,2.24447216]
[1752198710810,1.87937006,116000.0,115990.0,2.23585126]
[1752198711145,1.87937006,116000.0,115990.0,1.75466494]
[1752198711387,1.87937006,116000.0,115990.0,1.67712398]
[1752198711591,1.87937006,116000.0,115990.0,1.66850308]
[1752198711995,1.87937006,116000.0,115990.0,1.65988218]
[1752198712443,1.87737006,116000.0,115990.0,1.65126128]
[1752198712575,1.88037006,116000.0,115990.0,1.61246722]
[1752198712781,1.93037006,116000.0,115990.0,1.60390907]
[1752198712979,1.93037006,116000.0,115990.0,1.59528817]
[1752198713439,1.93037006,116000.0,115990.0,1.58666727]
[1752198713797,1.93037006,116000.0,115990.0,1.57804637]
[1752198714230,1.93037006,116000.0,115990.0,1.56942547]
[1752198714634,1.93037006,116000.0,115990.0,1.56080399]
[1752198715003,1.37424598,116000.0,115990.0,1.56080399]
[1752198715288,1.35864598,116000.0,115990.0,1.56080399]
[1752198715616,1.24172598,116000.0,115990.0,1.56080399]
[1752198715817,1.33277198,116000.0,115990.0,1.56080399]
[1752198716028,1.20065198,116000.0,115990.0,1.56080399]
[1752198716247,0.91564106,116000.0,115990.0,1.58150399]
[1752198716454,1.40230191,116000.0,115990.0,1.58150399]
[1752198716869,1.40230191,116000.0,115990.0,1.56383399]
[1752198717087,1.68315406,116000.0,115990.0,1.56080399]
[1752198717292,1.69975406,116000.0,115990.0,1.56080399]
[1752198718928,1.16644976,116000.0,115990.0,1.56080399]
[1752198719149,1.70175406,116000.0,115990.0,1.56080399]
[1752198724431,1.70093306,116000.0,115990.0,1.56080399]
[1752198726032,1.69793306,116000.0,115990.0,1.56080399]
[1752198726672,1.68133306,116000.0,115990.0,1.56080399]
[1752198727319,1.68433306,116000.0,115990.0,1.56080399]
[1752198730062,1.70073306,116000.0,115990.0,1.56080399]
[1752198731223,1.61530313,116000.0,115990.0,1.56080399]
[1752198735881,1.58170313,116000.0,115990.0,1.56080399]
[1752198736122,1.31405098,116000.0,115990.0,1.60020399]
[1752198736331,1.31405098,116000.0,115990.0,1.56383399]
[1752198737583,1.58170313,116000.0,115990.0,1.56080399]
[1752198737801,1.66713306,116000.0,115990.0,1.56080399]
[1752198740810,1.66713306,116000.0,115990.0,1.56383399]
[1752198742775,1.39948091,116000.0,115990.0,1.56383399]
[1752198742953,1.39948091,116000.0,115990.0,1.58003399]
[1752198743711,1.39948091,116000.0,115990.0,1.56383399]
[1752198745138,1.66713306,116000.0,115990.0,1.56383399]
[1752198745574,1.39948091,116000.0,115990.0,1.58211399]